bitfinex-derivatives/quotes_SOLF0:USTF0_20241101
["timestamp","ask_amount","ask_price","bid_price","bid_amount"]
[1730428359922,1.3687,167.56,167.49,4.02]
[1730428360224,2.9884,167.54,167.49,4.02]
[1730428361121,2.9884,167.54,167.48,2.9894]
[1730428361819,14.34202464,167.55,167.46,4.02]
[1730428362023,1.3687,167.56,167.46,4.02]
[1730428363017,2.9883,167.55,167.49,2.9892]
[1730428363222,1.3687,167.56,167.46,4.02]
[1730428364528,14.34202464,167.55,167.46,4.02]
[1730428364729,2.9885,167.53,167.46,7.0096]
[1730428365133,2.9885,167.53,167.46,4.02]
[1730428365524,2.9885,167.53,167.46,7.0098]
[1730428365725,2.9885,167.53,167.46,4.02]
[1730428367327,2.9885,167.53,167.47,2.9895]
[1730428367824,2.9885,167.53,167.46,2.9897]
[1730428369735,4.3568,167.56,167.45,18.36202464]
[1730428370534,4.3568,167.56,167.49,2.9891]
[1730428370731,1.3687,167.56,167.45,18.36202464]
[1730428371430,1.3687,167.56,167.5,2.9889]
[1730428371825,19.83312464,167.59,167.47,14.34202464]
[1730428372138,19.83312464,167.59,167.52,2.9886]
[1730428372433,19.83312464,167.59,167.48,1.2657]
[1730428372434,2.988,167.57,167.48,1.2657]
[1730428373133,19.83312464,167.59,167.52,2.9885]
[1730428373334,1.3166,167.61,167.51,4.02]
[1730428374430,2.9873,167.6,167.53,2.9885]
[1730428374635,14.34202464,167.59,167.51,4.02]
[1730428376235,2.9877,167.58,167.52,2.9887]
[1730428378736,14.34202464,167.59,167.53,2.9884]
[1730428378737,2.9875,167.59,167.53,2.9884]
[1730428380839,2.9873,167.61,167.52,14.34202464]
[1730428382234,2.9873,167.61,167.54,2.9883]
[1730428382541,2.9876,167.59,167.51,4.02]
[1730428382937,2.9876,167.59,167.53,2.9885]
[1730428383141,2.9877,167.58,167.51,4.02]
[1730428383440,14.34202464,167.62,167.51,4.02]
[1730428383644,2.9875,167.59,167.53,2.9885]
[1730428384338,2.9873,167.6,167.54,2.9883]
[1730428386845,2.9871,167.61,167.56,2.988]
[1730428387742,2.9871,167.61,167.55,2.9881]
[1730428390044,14.34202464,167.64,167.55,14.34202464]
[1730428390246,2.5658,167.65,167.55,14.34202464]
[1730428390439,15.67222464,167.67,167.57,14.34202464]
[1730428390641,2.9864,167.66,167.59,2.9874]
[1730428391044,15.67222464,167.67,167.59,2.9874]
[1730428391242,2.9866,167.64,167.58,2.9876]
[1730428395545,15.67222464,167.67,167.57,4.0]
[1730428395755,2.9863,167.66,167.57,4.0]
[1730428396054,2.9863,167.66,167.58,14.34202464]
[1730428396651,2.986,167.68,167.6,2.9871]
[1730428396845,14.34202464,167.69,167.58,14.34202464]
[1730428398250,2.9861,167.67,167.6,2.9872]
[1730428398856,14.34202464,167.69,167.58,14.34202464]
[1730428399056,14.34202464,167.69,167.57,4.0]
[1730428399057,18.22952464,167.71,167.6,14.34202464]
[1730428399654,2.9858,167.69,167.62,2.9869]
[1730428402565,9.18025843,167.67,167.62,2.9869]
[1730428403458,12.16655843,167.66,167.6,13.18025843]
[1730428404261,12.16675843,167.65,167.58,12.16785843]
[1730428404462,2.9865,167.65,167.58,6.9876]
[1730428404761,14.34908331,167.67,167.58,4.0]
[1730428406465,14.34908331,167.67,167.58,6.9875]
[1730428406660,14.34908331,167.67,167.58,4.0]
[1730428407164,2.9866,167.64,167.59,2.9873]
[1730428409070,14.34908331,167.65,167.53,14.34908331]
[1730428409274,1.3087,167.64,167.53,14.34908331]
[1730428409471,14.34908331,167.63,167.54,4.0]
[1730428409769,2.9876,167.59,167.54,4.0]
[1730428409971,1.2928,167.62,167.51,18.44788331]
[1730428410165,14.34908331,167.61,167.51,4.0988]
[1730428410365,14.34908331,167.61,167.51,6.7227]
[1730428410566,14.34908331,167.58,167.51,4.0]
[1730428410865,1.3123,167.57,167.51,4.0]
[1730428411073,1.3123,167.57,167.47,4.0]
[1730428411274,2.9884,167.54,167.48,2.9893]
[1730428411475,14.34908331,167.56,167.47,4.0]
[1730428412069,2.9882,167.56,167.47,4.0]
[1730428412267,2.6633,167.57,167.47,4.0]
[1730428412761,5.6513,167.57,167.5,2.989]
[1730428412961,2.6633,167.57,167.5,2.989]
[1730428413376,2.988,167.56,167.49,2.9892]
[1730428415668,2.6633,167.57,167.49,2.9892]
[1730428415875,2.9882,167.55,167.49,2.9892]
[1730428416673,2.9882,167.55,167.47,4.0]
[1730428416974,2.6633,167.57,167.47,4.0]
[1730428417376,2.6633,167.57,167.49,2.9892]
[1730428418077,2.6633,167.57,167.47,6.9896]
[1730428418272,14.34908331,167.56,167.47,6.9896]
[1730428419275,2.9884,167.54,167.47,6.9896]
[1730428420369,2.9887,167.53,167.46,2.9897]
[1730428420575,14.34908331,167.54,167.42,14.34908331]
[1730428420770,14.34908331,167.54,167.44,3.98]
[1730428420982,14.34908331,167.54,167.44,6.9701]
[1730428420983,2.989,167.51,167.44,6.9701]
[1730428421183,14.34908331,167.51,167.43,3.98]
[1730428421884,2.9888,167.52,167.44,2.9901]
[1730428422181,3.98,167.55,167.44,14.34908331]
[1730428422578,2.9885,167.53,167.47,2.9894]
[1730428422886,3.98,167.55,167.44,14.34908331]
[1730428423081,6.9683,167.55,167.49,2.9891]
[1730428423279,1.3731,167.56,167.44,14.34908331]
[1730428423481,1.3731,167.56,167.47,14.34908331]
[1730428424287,2.9882,167.55,167.49,2.9891]
[1730428427983,2.9884,167.54,167.49,2.9891]
[1730428428592,9.18444669,167.53,167.49,12.17354669]
[1730428429189,1.3731,167.56,167.49,9.18444669]
[1730428429482,10.49674669,167.57,167.52,9.18444669]
[1730428429685,9.18444669,167.58,167.52,9.18444669]
[1730428429880,9.18444669,167.58,167.53,2.9885]
[1730428430084,9.18444669,167.58,167.52,9.18444669]
[1730428431283,12.17214669,167.58,167.53,2.9885]
[1730428433990,1.3548,167.6,167.55,2.9881]
[1730428433991,13.52664669,167.6,167.55,2.9881]
[1730428434393,10.53924669,167.6,167.55,2.9881]
[1730428434587,10.53924669,167.6,167.49,4.0689]
[1730428434588,9.18444669,167.58,167.52,12.17304669]
[1730428434889,9.18444669,167.55,167.49,11.87314669]
[1730428435092,9.18444669,167.55,167.49,15.85314669]
[1730428435297,9.18444669,167.55,167.5,2.989]
[1730428435489,9.18444669,167.53,167.49,3.98]
[1730428435789,9.18444669,167.55,167.49,13.16444669]
[1730428437087,9.18444669,167.56,167.51,9.18444669]
[1730428437288,1.3548,167.6,167.49,3.98]
[1730428437289,9.18444669,167.58,167.53,9.18444669]
[1730428437885,9.18444669,167.58,167.53,12.17284669]
[1730428438495,10.53924669,167.6,167.54,9.18444669]
[1730428438689,10.53924669,167.6,167.54,12.17274669]
[1730428439299,13.52664669,167.6,167.55,2.9881]
[1730428439598,13.52664669,167.6,167.54,9.18444669]
[1730428439992,13.52664669,167.6,167.54,12.17274669]
[1730428440192,9.18444669,167.6,167.54,9.18444669]
[1730428440392,9.18444669,167.6,167.49,3.98]
[1730428440393,9.18444669,167.61,167.56,9.18444669]
[1730428440594,9.18444669,167.61,167.57,2.9878]
[1730428441707,9.18444669,167.61,167.56,9.18444669]
[1730428441912,9.18444669,167.61,167.58,2.9876]
[1730428442104,1.3662,167.62,167.57,9.18444669]
[1730428442413,1.3509,167.64,167.59,12.17174669]
[1730428443409,9.18444669,167.63,167.57,9.18444669]
[1730428443602,9.18444669,167.6,167.54,13.16444669]
[1730428444911,12.17184669,167.6,167.54,16.15274669]
[1730428449513,9.18444669,167.6,167.54,13.16444669]
[1730428449905,9.18444669,167.58,167.5,2.5994]
[1730428450109,12.17264669,167.56,167.51,9.18444669]
[1730428451410,9.18444669,167.58,167.51,9.18444669]
[1730428451601,2.9879,167.57,167.51,12.17334669]
[1730428453008,2.9879,167.57,167.52,9.18444669]
[1730428453214,10.48904669,167.61,167.55,12.17244669]
[1730428453416,10.48904669,167.61,167.55,9.18444669]
[1730428453719,9.18444669,167.61,167.57,9.18444669]
[1730428454410,12.17134669,167.63,167.57,9.18444669]
[1730428455311,12.17134669,167.63,167.57,12.17214669]
[1730428455514,9.18444669,167.63,167.57,9.18444669]
[1730428455912,12.17164669,167.61,167.55,9.18444669]
[1730428456113,9.18444669,167.61,167.55,9.18444669]
[1730428456318,9.18444669,167.62,167.55,9.18444669]
[1730428457413,12.17134669,167.62,167.57,2.9878]
[1730428457712,9.18444669,167.64,167.59,9.18444669]
[1730428457912,9.18444669,167.6,167.54,9.18444669]
[1730428458909,12.17184669,167.6,167.54,12.17264669]
[1730428459712,12.17184669,167.6,167.53,3.96]
[1730428459713,9.18444669,167.62,167.57,9.18444669]
[1730428460020,9.18444669,167.64,167.58,9.18444669]
[1730428460519,2.9868,167.63,167.58,9.18444669]
[1730428460716,2.9868,167.63,167.57,2.9878]
[1730428460717,9.18444669,167.65,167.6,9.18444669]
[1730428460916,9.18444669,167.65,167.6,12.17154669]
[1730428461115,9.18444669,167.65,167.6,9.18444669]
[1730428462312,12.17084669,167.65,167.6,9.18444669]
[1730428462519,2.9864,167.65,167.59,2.9874]
[1730428464413,2.9861,167.67,167.61,2.987]
[1730428464620,17.06921299,167.68,167.58,2.6406]
[1730428465314,2.9862,167.67,167.61,2.9871]
[1730428466518,17.06921299,167.68,167.58,2.6406]
[1730428466719,1.3535,167.68,167.61,2.9871]
[1730428467020,15.70131299,167.71,167.59,14.34671299]
[1730428467319,2.9858,167.69,167.62,2.9868]
[1730428467713,15.70131299,167.71,167.62,2.9868]
[1730428467714,1.3546,167.71,167.62,14.34671299]
[1730428467914,1.3546,167.71,167.62,18.30671299]
[1730428468514,1.2971,167.72,167.62,18.30671299]
[1730428468715,1.2971,167.72,167.65,2.9863]
[1730428468716,2.9854,167.71,167.65,2.9863]
[1730428468911,14.34671299,167.73,167.62,3.96]
[1730428469120,1.3271,167.77,167.66,2.9861]
[1730428469121,15.59081299,167.76,167.66,2.9861]
[1730428469420,15.59081299,167.76,167.64,14.34671299]
[1730428469621,2.9849,167.74,167.68,2.9857]
[1730428469815,15.59081299,167.76,167.65,2.6396]
[1730428470021,14.34671299,167.73,167.63,1.2712]
[1730428470226,2.9853,167.71,167.65,2.9864]
[1730428470426,14.34671299,167.73,167.63,1.2712]
[1730428471122,2.9855,167.7,167.63,4.2579]
[1730428471419,2.9851,167.73,167.66,2.9862]
[1730428471620,15.59081299,167.76,167.66,2.9862]
[1730428472227,2.9852,167.72,167.66,2.9862]
[1730428473024,2.9851,167.73,167.66,2.9862]
[1730428473323,15.59081299,167.76,167.67,2.9859]
[1730428473722,2.9848,167.74,167.68,2.9857]
[1730428474027,15.59081299,167.76,167.67,3.96]
[1730428474225,4.2562,167.75,167.7,2.9853]
[1730428474929,2.9849,167.74,167.68,2.9858]
[1730428475627,2.9851,167.73,167.67,6.946]
[1730428476026,4.2563,167.75,167.68,2.9858]
[1730428476330,2.9848,167.75,167.67,3.96]
[1730428476634,2.9843,167.77,167.71,2.9853]
[1730428476935,2.9843,167.77,167.68,14.34671299]
[1730428477134,2.9845,167.76,167.7,2.9855]
[1730428477325,1.3593,167.79,167.68,14.34671299]
[1730428477625,1.3593,167.79,167.69,1.3205]
[1730428477828,2.9842,167.78,167.71,2.9852]
[1730428478130,14.34671299,167.78,167.69,1.3205]
[1730428478332,14.34671299,167.78,167.69,3.96]
[1730428478629,1.3593,167.79,167.69,3.96]
[1730428478630,14.34671299,167.75,167.69,3.96]
[1730428479031,2.9849,167.74,167.69,3.96]
[1730428479336,14.34671299,167.75,167.69,3.96]
[1730428479927,2.9852,167.72,167.66,2.9862]
[1730428480931,14.34671299,167.75,167.66,2.9862]
[1730428481131,2.985,167.73,167.66,2.9862]
[1730428481732,2.9852,167.72,167.65,21.27311299]
[1730428482934,2.9852,167.72,167.66,2.9862]
[1730428483134,14.34671299,167.75,167.65,18.28671299]
[1730428483135,14.34671299,167.77,167.65,18.28671299]
[1730428483333,2.9849,167.74,167.65,18.28671299]
[1730428484335,2.9849,167.74,167.67,2.986]
[1730428486540,2.985,167.73,167.67,2.986]
[1730428487036,2.9848,167.74,167.68,2.9858]
[1730428487638,2.9848,167.74,167.65,18.28671299]
[1730428488340,14.34671299,167.77,167.65,18.28671299]
[1730428488533,2.985,167.73,167.67,2.986]
[1730428491539,14.34671299,167.75,167.65,3.94]
[1730428491743,2.5501,167.74,167.65,3.94]
[1730428492236,2.5501,167.74,167.64,9.5462]
[1730428492435,14.34671299,167.72,167.64,6.9264]
[1730428492937,1.2644,167.73,167.64,3.94]
[1730428493642,2.9853,167.72,167.66,2.9861]
[1730428496542,2.9858,167.69,167.64,6.568]
[1730428496752,2.9858,167.69,167.64,3.94]
[1730428497239,14.34671299,167.72,167.64,6.9265]
[1730428498241,14.34671299,167.72,167.64,3.94]
[1730428498941,2.9855,167.7,167.64,6.9266]
[1730428499244,2.9855,167.7,167.64,2.9866]
[1730428499949,14.34671299,167.72,167.63,3.94]
[1730428500150,2.9857,167.69,167.63,6.9267]
[1730428500350,14.34671299,167.7,167.59,14.34671299]
[1730428500544,14.34671299,167.7,167.6,3.94]
[1730428500745,2.9864,167.66,167.6,3.94]
[1730428500941,14.34671299,167.7,167.6,3.94]
[1730428501749,14.34671299,167.7,167.62,2.9868]
[1730428501750,2.986,167.68,167.62,2.9868]
[1730428501953,14.34671299,167.7,167.6,3.94]
[1730428502149,14.34671299,167.67,167.58,3.94]
[1730428502348,2.9871,167.61,167.55,6.928]
[1730428502649,9.18717169,167.61,167.55,13.12717169]
[1730428503152,9.18717169,167.6,167.55,13.12717169]
[1730428503357,9.18717169,167.6,167.55,3.94]
[1730428503552,9.18717169,167.58,167.52,13.12717169]
[1730428503952,9.18717169,167.6,167.54,9.18717169]
[1730428504149,9.18717169,167.62,167.56,9.18717169]
[1730428504457,2.9869,167.63,167.55,2.9881]
[1730428504658,14.35450146,167.64,167.53,14.35450146]
[1730428505055,2.9871,167.62,167.56,2.988]
[1730428505358,14.35450146,167.64,167.56,2.988]
[1730428505852,14.35450146,167.62,167.53,2.9884]
[1730428506046,14.35450146,167.59,167.48,16.98850146]
[1730428506246,14.35450146,167.55,167.46,1.3178]
[1730428506845,14.35450146,167.55,167.46,2.9898]
[1730428506846,2.9886,167.53,167.46,2.9898]
[1730428507051,14.35450146,167.55,167.41,18.29450146]
[1730428507052,14.35450146,167.52,167.41,18.29450146]
[1730428507253,14.35450146,167.52,167.38,14.35450146]
[1730428507557,14.35450146,167.49,167.41,3.94]
[1730428507758,14.35450146,167.49,167.38,14.35450146]
[1730428507759,14.35450146,167.49,167.39,3.94]
[1730428508356,14.35450146,167.49,167.4,2.9908]
[1730428509257,2.9896,167.47,167.4,2.9908]
[1730428509453,1.3072,167.5,167.41,14.35450146]
[1730428510657,4.2963,167.5,167.43,2.9903]
[1730428511252,4.2963,167.5,167.41,14.35450146]
[1730428511460,4.2963,167.5,167.42,2.9903]
[1730428512162,4.2963,167.5,167.43,2.9903]
[1730428513154,17.03030146,167.51,167.41,14.35450146]
[1730428513462,20.01920146,167.51,167.44,2.99]
[1730428515160,15.71880146,167.51,167.47,2.9895]
[1730428515368,14.35450146,167.54,167.47,2.9895]
[1730428516063,17.34350146,167.51,167.45,2.9899]
[1730428516361,14.35450146,167.51,167.44,3.92]
[1730428516668,2.9898,167.47,167.41,2.9906]
[1730428517160,14.35450146,167.49,167.39,3.92]
[1730428517360,1.3776,167.48,167.38,14.35450146]
[1730428517561,1.3776,167.48,167.38,18.27450146]
[1730428518062,1.3776,167.48,167.4,2.9908]
[1730428518063,2.9898,167.46,167.4,2.9908]
[1730428518265,1.3311,167.5,167.4,14.35450146]
[1730428519066,2.9893,167.49,167.43,2.9901]
[1730428520170,4.3203,167.5,167.44,2.9901]
[1730428520777,2.9893,167.49,167.44,2.9901]
[1730428522373,2.9893,167.49,167.42,2.9903]
[1730428522765,2.9894,167.48,167.42,2.9903]
[1730428522972,14.35450146,167.49,167.4,2.9908]
[1730428523277,2.9899,167.46,167.39,3.92]
[1730428523481,14.35450146,167.47,167.39,6.911]
[1730428523775,2.9904,167.43,167.35,3.92]
[1730428524666,2.9904,167.43,167.37,2.9913]
[1730428524864,2.9904,167.43,167.35,3.92]
[1730428525379,14.35450146,167.42,167.33,3.92]
[1730428525576,1.2798,167.47,167.33,3.92]
[1730428525577,14.35450146,167.45,167.33,18.27450146]
[1730428525878,2.9905,167.43,167.36,2.9914]
[1730428526170,14.35450146,167.45,167.33,18.27450146]
[1730428526371,2.9898,167.46,167.39,2.9909]
[1730428526582,1.3362,167.48,167.38,18.27450146]
[1730428526875,1.3362,167.48,167.43,2.9902]
[1730428527279,1.3362,167.48,167.4,14.35450146]
[1730428527576,1.3362,167.48,167.42,2.9905]
[1730428528578,2.9898,167.46,167.4,2.9908]
[1730428528779,2.9898,167.46,167.38,18.27450146]
[1730428529370,1.3362,167.48,167.4,14.35450146]
[1730428529572,14.35450146,167.51,167.4,14.35450146]
[1730428529774,17.34340146,167.51,167.44,2.9901]
[1730428530171,14.35450146,167.51,167.44,2.9901]
[1730428531372,4.3202,167.5,167.44,2.9901]
[1730428531678,14.35450146,167.54,167.43,14.35450146]
[1730428531868,14.35450146,167.57,167.45,18.27450146]
[1730428532372,2.9881,167.56,167.49,2.9891]
[1730428533171,2.9885,167.54,167.49,2.9892]
[1730428533376,14.35450146,167.54,167.45,3.92]
[1730428534278,14.35450146,167.54,167.47,2.9896]
[1730428535373,2.9886,167.53,167.47,2.9896]
[1730428537175,2.988,167.56,167.5,2.989]
[1730428537575,14.35450146,167.57,167.47,14.35450146]
[1730428537970,14.35450146,167.57,167.45,3.92]
[1730428538173,2.9885,167.54,167.47,2.9894]
[1730428538373,14.35450146,167.55,167.47,2.9894]
[1730428538580,14.35450146,167.55,167.45,3.92]
[1730428539779,14.35450146,167.49,167.38,3.92]
[1730428540178,17.34380146,167.49,167.42,2.9903]
[1730428540383,14.35450146,167.49,167.42,2.9903]
[1730428541181,2.9896,167.48,167.42,2.9903]
[1730428541583,14.35450146,167.49,167.42,2.9903]
[1730428543385,2.9896,167.47,167.42,2.9903]
[1730428544085,2.9895,167.48,167.41,2.9906]
[1730428544282,2.9895,167.48,167.38,3.92]
[1730428545187,2.9891,167.5,167.39,14.35450146]
[1730428545492,14.35450146,167.51,167.43,2.9902]
[1730428545692,14.35450146,167.51,167.39,14.35450146]
[1730428545893,14.35450146,167.51,167.41,14.35450146]
[1730428546395,14.35450146,167.51,167.39,14.35450146]
[1730428547388,2.9894,167.49,167.43,2.9903]
[1730428547589,14.35450146,167.48,167.39,14.35450146]
[1730428549398,2.9897,167.47,167.41,2.9905]
[1730428549998,14.35450146,167.48,167.39,14.35450146]
[1730428550191,2.9898,167.46,167.4,2.9909]
[1730428550393,14.35450146,167.48,167.4,2.9909]
[1730428550594,2.9896,167.47,167.4,2.9909]
[1730428551391,2.9896,167.47,167.41,2.9906]
[1730428551797,2.9894,167.49,167.39,14.35450146]
[1730428551998,2.9894,167.49,167.43,2.9903]
[1730428552302,2.9894,167.49,167.39,14.35450146]
[1730428552803,3.8931,167.52,167.41,14.35450146]
[1730428552990,2.6234,167.52,167.47,2.9895]
[1730428553303,14.35450146,167.55,167.44,14.35450146]
[1730428553599,2.9882,167.55,167.49,2.9891]
[1730428553989,2.9884,167.54,167.49,2.9891]
[1730428555201,2.9884,167.54,167.48,2.9894]
[1730428558404,2.9889,167.52,167.46,2.9896]
[1730428558604,14.35450146,167.55,167.44,1.3513]
[1730428559107,2.989,167.51,167.44,1.3513]
[1730428560305,2.989,167.51,167.46,2.9898]
[1730428561305,2.989,167.51,167.45,2.9899]
[1730428561505,2.9894,167.48,167.42,5.2714]
[1730428561701,14.35450146,167.5,167.42,5.2714]
[1730428562600,14.35450146,167.5,167.37,2.6747]
[1730428562601,14.35450146,167.5,167.4,3.92]
[1730428562800,1.3374,167.49,167.4,3.92]
[1730428563002,2.9898,167.46,167.4,6.9107]
[1730428563199,3.9666,167.49,167.4,3.92]
[1730428563502,2.9896,167.47,167.4,6.9107]
[1730428563802,2.9896,167.47,167.4,3.92]
[1730428564222,3.9666,167.49,167.4,3.92]
[1730428564417,2.9895,167.48,167.4,3.92]
[1730428564704,3.9666,167.49,167.42,2.9903]
[1730428564903,3.9666,167.49,167.4,3.92]
[1730428564904,6.956,167.49,167.4,3.92]
[1730428565303,6.956,167.49,167.43,2.9902]
[1730428565504,3.92,167.53,167.4,18.27450146]
[1730428565505,2.9889,167.51,167.4,18.27450146]
[1730428565903,2.9889,167.51,167.45,2.9899]
[1730428566502,2.9891,167.5,167.45,2.9899]
[1730428566805,14.35450146,167.53,167.46,2.9898]
[1730428567609,2.9889,167.51,167.46,2.9898]
[1730428570504,2.9894,167.49,167.4,18.27450146]
[1730428572305,2.9894,167.49,167.43,2.9902]
[1730428572612,2.9891,167.5,167.4,18.27450146]
[1730428573517,2.9891,167.5,167.43,2.9903]
[1730428575410,2.9891,167.5,167.39,2.92427221]
[1730428575411,2.9896,167.47,167.41,2.9905]
[1730428575615,2.9896,167.47,167.39,3.9]
[1730428576106,2.9896,167.47,167.41,2.9907]
[1730428576417,2.9898,167.46,167.41,2.9907]
[1730428576610,14.35450146,167.48,167.41,2.9907]
[1730428577015,12.26461026,167.55,167.44,2.9901]
[1730428577016,2.9891,167.5,167.44,2.9901]
[1730428579115,17.34300146,167.53,167.48,2.9893]
[1730428579422,18.30650146,167.55,167.45,14.35450146]
[1730428579923,18.30650146,167.55,167.45,15.60000146]
[1730428580223,3.952,167.55,167.45,15.60000146]
[1730428580407,2.9884,167.54,167.48,2.9892]
[1730428580611,3.952,167.55,167.45,15.60000146]
[1730428581215,2.9884,167.54,167.48,2.9894]
[1730428581914,2.9884,167.54,167.45,15.60000146]
[1730428581915,2.988,167.56,167.5,2.9889]
[1730428582421,17.34230146,167.58,167.49,3.9]
[1730428582818,1.2513,167.59,167.49,3.9]
[1730428583318,2.9879,167.57,167.52,2.9887]
[1730428587923,2.988,167.56,167.51,2.9888]
[1730428590124,2.9877,167.58,167.52,2.9887]
[1730428590726,2.988,167.56,167.49,6.8891]
[1730428591424,1.2513,167.59,167.49,6.8891]
[1730428591626,1.2513,167.59,167.45,15.60000146]
[1730428591627,14.35450146,167.56,167.45,15.60000146]
[1730428591932,14.35450146,167.56,167.46,3.9]
[1730428592123,2.9888,167.52,167.46,3.9]
[1730428592617,2.9889,167.51,167.45,15.60000146]
[1730428592823,1.2513,167.59,167.45,3.9]
[1730428592824,14.35450146,167.53,167.45,3.9]
[1730428593020,14.35450146,167.51,167.4,14.35450146]
[1730428593226,1.3005,167.5,167.41,3.9]
[1730428593924,2.9897,167.47,167.41,6.8905]
[1730428594527,2.9899,167.46,167.41,3.9]
[1730428594732,1.3005,167.5,167.41,3.9]
[1730428596234,2.9895,167.48,167.42,2.9905]
[1730428599034,1.3005,167.5,167.41,3.9]
[1730428599237,2.9897,167.47,167.41,3.9]
[1730428600336,2.9897,167.47,167.42,2.9905]
[1730428602839,14.35450146,167.51,167.41,3.9]
[1730428603038,1.2588,167.52,167.42,14.35450146]
[1730428603539,1.2588,167.52,167.45,2.99]
[1730428603736,1.2588,167.52,167.42,14.35450146]
[1730428604133,1.2588,167.52,167.45,2.9899]
[1730428604542,9.1889204,167.5,167.45,12.1788204]
[1730428609241,9.1889204,167.49,167.41,14.4180204]
[1730428609545,9.1889204,167.47,167.41,14.4180204]
[1730428610342,9.1889204,167.49,167.43,9.1889204]
[1730428611238,12.1781204,167.5,167.44,12.1790204]
[1730428611737,1.2588,167.52,167.41,5.2291]
[1730428611738,9.1889204,167.52,167.47,2.9895]
[1730428613049,12.1777204,167.52,167.47,2.9895]
[1730428614655,12.1777204,167.52,167.46,9.1889204]
[1730428614656,9.1889204,167.52,167.46,9.1889204]
[1730428615051,9.1889204,167.52,167.48,2.9893]
[1730428616144,12.1775204,167.53,167.47,9.1889204]
[1730428616442,12.1775204,167.53,167.49,2.9892]
[1730428616653,12.1771204,167.55,167.49,9.1889204]
[1730428616956,9.1889204,167.55,167.5,2.9889]
[1730428617147,9.1889204,167.55,167.49,9.1889204]
[1730428618349,9.1889204,167.55,167.51,2.9887]
[1730428618650,9.1889204,167.52,167.45,3.9]
[1730428618860,9.1889204,167.5,167.45,6.8898]
[1730428619347,12.1780204,167.5,167.43,9.1889204]
[1730428619547,12.1780204,167.5,167.44,6.8901]
[1730428620460,2.9891,167.5,167.44,6.8901]
[1730428620752,2.9891,167.5,167.42,1.2617]
[1730428620753,14.36032652,167.52,167.43,3.9]
[1730428620952,4.0233,167.51,167.43,3.9]
[1730428621449,14.36032652,167.54,167.43,18.26032652]
[1730428621756,2.9887,167.53,167.47,2.9895]
[1730428622558,2.9888,167.52,167.45,14.36032652]
[1730428622749,14.36032652,167.54,167.43,18.26032652]
[1730428622956,2.9892,167.5,167.44,2.9901]
[1730428624253,2.9887,167.53,167.47,2.9895]
[1730428625045,1.3018,167.55,167.48,2.9894]
[1730428625246,2.9884,167.54,167.48,2.9894]
[1730428625455,1.3018,167.55,167.45,14.36032652]
[1730428625651,2.9888,167.52,167.45,14.36032652]
[1730428625857,2.9888,167.52,167.47,2.9896]
[1730428626451,15.66212652,167.55,167.45,14.36032652]
[1730428626752,1.3018,167.55,167.45,14.36032652]
[1730428627356,14.36032652,167.52,167.43,3.9]
[1730428628452,2.9894,167.48,167.43,3.9]
[1730428628646,2.9894,167.48,167.43,3.88]
[1730428631259,2.9894,167.48,167.43,6.8703]
[1730428632861,2.9893,167.49,167.43,6.8703]
[1730428633972,1.2755,167.51,167.38,15.62202652]
[1730428633973,14.36032652,167.48,167.38,15.62202652]
[1730428634163,15.71442652,167.48,167.39,3.88]
[1730428635370,2.9899,167.46,167.4,2.9907]
[1730428637465,2.9905,167.43,167.37,2.9912]
[1730428637658,14.36032652,167.46,167.36,3.88]
[1730428637865,14.36032652,167.43,167.36,3.88]
[1730428638468,2.9906,167.42,167.36,6.8714]
[1730428638667,14.36032652,167.45,167.36,3.88]
[1730428639664,2.9899,167.46,167.4,2.9908]
[1730428640170,2.99,167.45,167.4,2.9908]
[1730428640763,15.71442652,167.48,167.38,3.88]
[1730428640963,14.36032652,167.45,167.35,1.3505]
[1730428641169,1.2757,167.44,167.35,5.2305]
[1730428641469,2.9905,167.42,167.36,2.9915]
[1730428641670,2.9905,167.42,167.35,5.2305]
[1730428641868,1.2757,167.44,167.35,19.59082652]